fUST/lending_fUST_20260303
["ID","MTS","AMOUNT","RATE_DAILY","PERIOD"]
[407168562,1772467209628,159.31,9.5e-05,2]
[407168563,1772467210172,159.31,0.0001,2]
[407168564,1772467243987,-657.64,0.00010167,2]
[407168566,1772467423718,1960.04645342,0.0001001,2]
[407168567,1772467512534,-150.0,0.00014,20]
[407168568,1772467514023,-150.0,0.00014,20]
[407168569,1772467516874,-150.0,0.00014,20]
[407168584,1772467566814,150.0,0.0001,11]
[407168585,1772467567121,213.44,0.0001,14]
[407168693,1772467809964,164.41,9.5e-05,2]
[407168694,1772467810672,164.41,9.8e-05,2]
[407168722,1772467831694,-164.41,0.000101,2]
[407168723,1772467831705,-4274.08947309,0.00010167,2]
[407168725,1772467831715,-562.0,0.00010167,2]
[407168727,1772467831725,-150.0,0.00010245,2]
[407168728,1772467831735,-159.31,0.000105,2]
[407168729,1772467831747,-164.41,0.000105,2]
[407168730,1772467831759,-1200.0,0.00010799,2]
[407168731,1772467831769,-500.0,0.000108,2]
[407168732,1772467831779,-500.0,0.000108,2]
[407168733,1772467831790,-300.0,0.00011079,2]
[407168734,1772467831800,-1863.75788297,0.0001108,2]
[407168735,1772467831812,-1414.27104843,0.0001108,2]
[407168736,1772467831850,-331.65227858,0.0001108,2]
[407168801,1772467839083,-1889.94678912,0.0001108,2]
[407168804,1772467839092,-172.988977,0.00011706,2]
[407168807,1772467839102,-7761.06612084,0.00011879,2]
[407168809,1772467839112,-442.0,0.00011879,2]
[407168812,1772467839121,-415.0,0.00012174,2]
[407168815,1772467839131,-177.0,0.00012245,2]
[407168818,1772467839141,-548.51,0.00012329,2]
[407168821,1772467839150,-457.1,0.00012329,2]
[407168824,1772467839161,-380.91,0.00012329,2]
[407168827,1772467839171,-317.43,0.00012329,2]
[407168829,1772467839181,-264.52,0.00012329,2]
[407168831,1772467839191,-220.44,0.00012329,2]
[407168833,1772467839200,-183.7,0.00012329,2]
[407168836,1772467839211,-153.08,0.00012329,2]
[407168837,1772467839220,-765.42,0.00012329,2]
[407168839,1772467839230,-600.0,0.00012574,2]
[407168842,1772467839240,-317.645135,0.00012634,2]
[407168843,1772467839249,-292.19959204,0.00012953,2]
[407168845,1772467839259,-456.49193119,0.00012953,2]
[407168847,1772467839270,-496.47127164,0.00012954,2]
[407168849,1772467839280,-250.0,0.00012954,2]
[407168851,1772467839289,-250.0,0.00012954,2]
[407168854,1772467839299,-250.0,0.00012954,2]
[407168855,1772467839308,-250.0,0.00012954,2]
[407168857,1772467839318,-250.0,0.00012954,2]
[407168859,1772467839327,-250.0,0.00012954,2]
[407168862,1772467839337,-250.0,0.00012954,2]
[407168863,1772467839347,-250.0,0.00012954,2]
[407168866,1772467839357,-181.08010149,0.00012954,2]
[407168868,1772467839366,-250.0,0.00012954,2]
[407168870,1772467839376,-250.0,0.00012954,2]
[407168872,1772467839386,-250.0,0.00012954,2]
[407168873,1772467839396,-250.0,0.00012954,2]
[407168875,1772467839407,-250.0,0.00012954,2]
[407168877,1772467839417,-250.0,0.00012954,2]
[407168879,1772467839426,-250.0,0.00012954,2]
[407168882,1772467839436,-250.0,0.00012954,2]
[407168884,1772467839446,-250.0,0.00012954,2]
[407168885,1772467839456,-500.0,0.00012954,2]
[407168888,1772467839466,-500.0,0.00012954,2]
[407168889,1772467839476,-187.78006525,0.00012954,2]
[407168891,1772467839485,-194.72792766,0.00012954,2]
[407168893,1772467839495,-201.93286099,0.00012954,2]
[407168895,1772467839504,-2398.4119403,0.00012954,2]
[407168898,1772467839517,-209.40437684,0.00012954,2]
[407168899,1772467839526,-217.15233878,0.00012954,2]
[407168902,1772467839537,-225.18697532,0.00012954,2]
[407168904,1772467839549,-233.51889341,0.00012954,2]
[407168905,1772467839560,-250.0,0.00012954,2]
[407168907,1772467839570,-242.15909246,0.00012954,2]
[407168910,1772467839581,-250.0,0.00012954,2]
[407168911,1772467839590,-251.11897888,0.00012954,2]
[407168914,1772467839600,-250.0,0.00012954,2]
[407168915,1772467839611,-250.0,0.00012954,2]
[407168918,1772467839622,-260.4103811,0.00012954,2]
[407168919,1772467839631,-250.0,0.00012954,2]
[407168922,1772467839641,-270.0455652,0.00012954,2]
[407168923,1772467839651,-500.0,0.00012954,2]
[407168925,1772467839662,-250.0,0.00012954,2]
[407168927,1772467839672,-160.76155877,0.00012954,2]
[407168929,1772467839682,-280.03725112,0.00012954,2]
[407168931,1772467839691,-500.0,0.00012954,2]
[407168933,1772467839700,-250.0,0.00012954,2]
[407168936,1772467839711,-250.0,0.00012954,2]
[407168937,1772467839720,-290.39862941,0.00012954,2]
[407168940,1772467839729,-500.0,0.00012954,2]
[407168942,1772467839739,-3.95324619,0.00012954,2]
[407169470,1772467845952,-246.04675381,0.00012954,2]
[407169473,1772467845963,-250.0,0.00012954,2]
[407169476,1772467845973,-301.1433787,0.00012954,2]
[407169479,1772467845983,-500.0,0.00012954,2]
[407169483,1772467846001,-250.0,0.00012954,2]
[407169485,1772467846011,-250.0,0.00012954,2]
[407169489,1772467846022,-500.0,0.00012954,2]
[407169493,1772467846031,-250.0,0.00012954,2]
[407169496,1772467846041,-250.0,0.00012954,2]
[407169499,1772467846051,-500.0,0.00012954,2]
[407169502,1772467846061,-250.0,0.00012954,2]
[407169504,1772467846071,-500.0,0.00012954,2]
[407169506,1772467846081,-250.0,0.00012954,2]
[407169508,1772467846091,-500.0,0.00012954,2]
[407169510,1772467846102,-250.0,0.00012954,2]
[407169513,1772467846113,-500.0,0.00012954,2]
[407169515,1772467846126,-500.0,0.00012954,2]
[407169517,1772467846136,-250.0,0.00012954,2]
[407169519,1772467846146,-500.0,0.00012954,2]
[407169521,1772467846156,-250.0,0.00012954,2]
[407169523,1772467846170,-500.0,0.00012954,2]
[407169526,1772467846182,-500.0,0.00012954,2]
[407169528,1772467846193,-250.0,0.00012954,2]
[407169530,1772467846203,-250.0,0.00012954,2]
[407169532,1772467846213,-250.0,0.00012954,2]
[407169534,1772467846223,-250.0,0.00012954,2]
[407169536,1772467846233,-250.0,0.00012954,2]
[407169538,1772467846243,-250.0,0.00012954,2]
[407169540,1772467846253,-250.0,0.00012954,2]
[407169542,1772467846263,-250.0,0.00012954,2]
[407169544,1772467846274,-250.0,0.00012954,2]
[407169546,1772467846284,-250.0,0.00012954,2]
[407169548,1772467846293,-250.0,0.00012954,2]
[407169550,1772467846302,-250.0,0.00012954,2]
[407169552,1772467846312,-250.0,0.00012954,2]
[407169554,1772467846324,-250.0,0.00012954,2]
[407169556,1772467846334,-250.0,0.00012954,2]
[407169558,1772467846345,-250.0,0.00012954,2]
[407169560,1772467846357,-250.0,0.00012954,2]
[407169562,1772467846366,-250.0,0.00012954,2]
[407169564,1772467846377,-250.0,0.00012954,2]
[407169566,1772467846386,-250.0,0.00012954,2]
[407169568,1772467846396,-197.15304581,0.00012954,2]
[407169570,1772467846406,-250.0,0.00012954,2]
[407169573,1772467846418,-250.0,0.00012954,2]
[407169575,1772467846428,-250.0,0.00012954,2]
[407169577,1772467846438,-250.0,0.00012954,2]
[407169578,1772467846447,-250.0,0.00012954,2]
[407169580,1772467846457,-250.0,0.00012954,2]
[407169583,1772467846467,-250.0,0.00012954,2]
[407169584,1772467846478,-250.0,0.00012954,2]
[407169586,1772467846488,-250.0,0.00012954,2]
[407169588,1772467846498,-250.0,0.00012954,2]
[407169591,1772467846509,-250.0,0.00012954,2]
[407169593,1772467846519,-250.0,0.00012954,2]
[407169595,1772467846528,-250.0,0.00012954,2]
[407169596,1772467846538,-500.0,0.00012954,2]
[407169599,1772467846548,-152.996566,0.00013086,2]
[407169601,1772467846558,-317.645135,0.00013166,2]
[407169603,1772467846568,-500.0,0.00013205,2]
[407169605,1772467846578,-150.0,0.00013205,2]
[407169607,1772467846589,-380.16,0.00013252,2]
[407169609,1772467846599,-500.0,0.0001326,2]
[407169611,1772467846608,-203.09416946,0.0001326,2]
[407169612,1772467846617,-150.0,0.0001326,2]
[407169615,1772467846627,-150.0,0.0001326,2]
[407169618,1772467846636,-500.0,0.0001326,2]
[407169621,1772467846646,-500.0,0.0001326,2]
[407169624,1772467846655,-162.9736004,0.00013273,2]
[407169628,1772467846668,-153.58127219,0.00013273,2]
[407169631,1772467846678,-168.80759877,0.00013273,2]
[407169699,1772467847203,-258.58443364,0.00013273,2]
[407169702,1772467847216,-72.60796759,0.00013273,2]
[407169704,1772467847226,-500.0,0.00013273,2]
[407169706,1772467847237,-500.0,0.00013273,2]
[407169708,1772467847247,-500.0,0.00013273,2]
[407169710,1772467847257,-500.0,0.00013273,2]
[407169712,1772467847267,-500.0,0.00013273,2]
[407169714,1772467847277,-500.0,0.00013273,2]
[407169732,1772467847458,-500.0,0.00013273,2]
[407169735,1772467847481,-500.0,0.00013273,2]
[407169737,1772467847494,-612.03122719,0.00013273,2]
[407169739,1772467847505,-500.0,0.00013273,2]
[407169740,1772467847516,-500.0,0.00013273,2]
[407169741,1772467847526,-394.86936231,0.00013273,2]
[407169742,1772467847535,-555.15813162,0.00013315,2]
[407169743,1772467847544,-150.0,0.00013315,2]
[407169744,1772467847553,-150.0,0.00013315,2]
[407169745,1772467847563,-500.0,0.00013315,2]
[407169746,1772467847572,-500.0,0.00013315,2]
[407169747,1772467847582,-187.87465133,0.00013351,2]
[407169749,1772467847591,-150.0,0.0001337,2]
[407169751,1772467847602,-150.0,0.0001337,2]
[407169753,1772467847612,-500.0,0.0001337,2]
[407169755,1772467847622,-500.0,0.0001337,2]
[407169757,1772467847632,-1000.0,0.000134,2]
[407169759,1772467847642,-162.97420225,0.00013424,2]
[407169761,1772467847651,-150.0,0.00013424,2]
[407169763,1772467847664,-500.0,0.00013424,2]
[407169764,1772467847674,-500.0,0.00013424,2]
[407169767,1772467847684,-259.7785625,0.00013479,2]
[407169769,1772467847694,-503.49532542,0.00013479,2]
[407169771,1772467847704,-343.81100892,0.00013479,2]
[407169773,1772467847714,-300.61081367,0.000135,2]
[407169775,1772467847725,-514.84070869,0.00013502,2]
[407169777,1772467847735,-1857.04315198,0.00013502,2]
[407169779,1772467847750,-630.11003011,0.00013502,2]
[407169781,1772467847762,-452.2641725,0.0001362,2]
[407169783,1772467847774,-300.0,0.00013673,2]
[407169785,1772467847784,-277.14361985,0.00013697,2]
[407169790,1772467847820,-1222.85638015,0.00013697,2]
[407169791,1772467847829,-1500.0,0.00013697,2]
[407169794,1772467847842,-1500.0,0.00013697,2]
[407169796,1772467847852,-1500.0,0.00013697,2]
[407169798,1772467847863,-1500.0,0.00013697,2]
[407169800,1772467847873,-1500.0,0.00013697,2]
[407169802,1772467847882,-1500.0,0.00013697,2]
[407169804,1772467847892,-1500.0,0.00013697,2]
[407169806,1772467847902,-1500.0,0.00013697,2]
[407169808,1772467847914,-1500.0,0.00013697,2]
[407169810,1772467847924,-1500.0,0.00013697,2]
[407169812,1772467847934,-1500.0,0.00013697,2]
[407169814,1772467847945,-1500.0,0.00013697,2]
[407169816,1772467847955,-1500.0,0.00013697,2]
[407169818,1772467847966,-1500.0,0.00013697,2]
[407169820,1772467847976,-1500.0,0.00013697,2]
[407169822,1772467847985,-1500.0,0.00013697,2]
[407169824,1772467847995,-1500.0,0.00013697,2]
[407169827,1772467848006,-1500.0,0.00013697,2]
[407169829,1772467848015,-1500.0,0.00013697,2]
[407169831,1772467848025,-1500.0,0.00013697,2]
[407169833,1772467848035,-1500.0,0.00013697,2]
[407169835,1772467848045,-1500.0,0.00013697,2]
[407169837,1772467848054,-1500.0,0.00013697,2]
[407169839,1772467848064,-1500.0,0.00013697,2]
[407169841,1772467848074,-1500.0,0.00013697,2]
[407169843,1772467848083,-1500.0,0.00013697,2]
[407169845,1772467848093,-1500.0,0.00013697,2]
[407169847,1772467848103,-1500.0,0.00013697,2]
[407169849,1772467848113,-1500.0,0.00013697,2]
[407169851,1772467848123,-1500.0,0.00013697,2]
[407169853,1772467848133,-1500.0,0.00013697,2]
[407169855,1772467848142,-1500.0,0.00013697,2]
[407169857,1772467848152,-1500.0,0.00013697,2]
[407169859,1772467848162,-1500.0,0.00013697,2]
[407169861,1772467848172,-1500.0,0.00013697,2]
[407169863,1772467848181,-1500.0,0.00013697,2]
[407169865,1772467848191,-1500.0,0.00013697,2]
[407169867,1772467848201,-1500.0,0.00013697,2]
[407169869,1772467848211,-1500.0,0.00013697,2]
[407169871,1772467848220,-1500.0,0.00013697,2]
[407169873,1772467848231,-1500.0,0.00013697,2]
[407169875,1772467848240,-1500.0,0.00013697,2]
[407169877,1772467848250,-1500.0,0.00013697,2]
[407169879,1772467848260,-1500.0,0.00013697,2]
[407169881,1772467848270,-1500.0,0.00013697,2]
[407169883,1772467848280,-1500.0,0.00013697,2]
[407169885,1772467848290,-1500.0,0.00013697,2]
[407169887,1772467848300,-225.00982688,0.00013697,2]
[407169889,1772467848310,-317.645135,0.00013698,2]
[407169891,1772467848321,-29572.34338834,0.00013698,2]
[407169893,1772467848330,-500.0,0.00013698,2]
[407169895,1772467848340,-500.0,0.00013698,2]
[407169897,1772467848350,-500.0,0.00013698,2]
[407169899,1772467848360,-500.0,0.00013698,2]
[407169901,1772467848370,-500.0,0.00013698,2]
[407169903,1772467848380,-500.0,0.00013698,2]
[407169905,1772467848389,-500.0,0.00013698,2]
[407169907,1772467848398,-1128.6,0.00013698,2]
[407169909,1772467848408,-500.0,0.00013698,2]
[407169911,1772467848419,-500.0,0.00013698,2]
[407169913,1772467848428,-1035.86343871,0.00013698,2]
[407169915,1772467848437,-500.0,0.00013698,2]
[407169917,1772467848446,-1023.57,0.00013698,2]
[407169919,1772467848455,-500.0,0.00013698,2]
[407169921,1772467848465,-500.0,0.00013698,2]
[407169923,1772467848474,-500.0,0.00013698,2]
[407169925,1772467848484,-500.0,0.00013698,2]
[407169927,1772467848494,-500.0,0.00013698,2]
[407169929,1772467848504,-2633.23,0.00013698,2]
[407169931,1772467848515,-674.22,0.00013698,2]
[407169933,1772467848524,-666.31,0.00013698,2]
[407169935,1772467848534,-500.0,0.00013698,2]
[407169937,1772467848545,-500.0,0.00013698,2]
[407169940,1772467848555,-500.0,0.00013698,2]
[407169942,1772467848565,-516.66,0.00013698,2]
[407169944,1772467848575,-500.0,0.00013698,2]
[407169946,1772467848585,-500.0,0.00013698,2]
[407169948,1772467848595,-577.85,0.00013698,2]
[407169950,1772467848604,-500.0,0.00013698,2]
[407169952,1772467848614,-500.0,0.00013698,2]
[407169954,1772467848624,-317.7467963,0.00013698,2]
[407169956,1772467848635,-500.0,0.00013698,2]
[407169958,1772467848645,-500.0,0.00013698,2]
[407169960,1772467848655,-843.39,0.00013698,2]
[407169962,1772467848665,-500.0,0.00013698,2]
[407169964,1772467848674,-500.0,0.00013698,2]
[407169966,1772467848684,-788.42,0.00013698,2]
[407169968,1772467848695,-1003.8,0.00013698,2]
[407169970,1772467848706,-500.0,0.00013698,2]
[407169972,1772467848716,-1003.8,0.00013698,2]
[407169974,1772467848726,-1003.8,0.00013698,2]
[407169976,1772467848736,-1003.8,0.00013698,2]
[407169978,1772467848746,-1003.8,0.00013698,2]
[407169980,1772467848759,-1003.8,0.00013698,2]
[407169982,1772467848769,-1003.8,0.00013698,2]
[407169984,1772467848779,-1003.8,0.00013698,2]
[407169986,1772467848789,-1003.8,0.00013698,2]
[407169988,1772467848799,-1003.8,0.00013698,2]
[407169990,1772467848809,-1003.8,0.00013698,2]
[407169992,1772467848818,-1003.8,0.00013698,2]
[407169994,1772467848831,-1003.8,0.00013698,2]
[407169997,1772467848841,-1003.8,0.00013698,2]
[407169998,1772467848851,-1003.8,0.00013698,2]
[407170000,1772467848862,-1003.8,0.00013698,2]
[407170002,1772467848872,-1003.8,0.00013698,2]
[407170005,1772467848881,-1003.8,0.00013698,2]
[407170007,1772467848891,-1003.8,0.00013698,2]
[407170009,1772467848901,-1003.8,0.00013698,2]
[407170010,1772467848911,-1003.8,0.00013698,2]
[407170013,1772467848934,-1003.8,0.00013698,2]
[407170015,1772467848944,-1003.8,0.00013698,2]
[407170017,1772467848954,-1003.95280204,0.00013698,2]
[407170019,1772467848964,-519.31343139,0.00013698,2]
[407170021,1772467848973,-2412.91,0.00013698,2]
[407170023,1772467848982,-500.0,0.00013698,2]
[407170025,1772467848992,-500.0,0.00013698,2]
[407170027,1772467849002,-500.0,0.00013698,2]
[407170029,1772467849011,-500.0,0.00013698,2]
[407170031,1772467849021,-1233.69,0.00013698,2]
[407170033,1772467849030,-500.0,0.00013698,2]
[407170035,1772467849039,-543.56288906,0.00013698,2]
[407170037,1772467849048,-500.0,0.00013698,2]
[407170039,1772467849058,-500.0,0.00013698,2]
[407170041,1772467849068,-500.0,0.00013698,2]
[407170043,1772467849077,-500.0,0.00013698,2]
[407170045,1772467849087,-500.0,0.00013698,2]
[407170047,1772467849096,-505.25373211,0.00013698,2]
[407170049,1772467849105,-1962.1,0.00013698,2]
[407170051,1772467849115,-1747.07,0.00013698,2]
[407170053,1772467849124,-500.0,0.00013698,2]
[407170055,1772467849134,-500.0,0.00013698,2]
[407170057,1772467849143,-500.0,0.00013698,2]
[407170059,1772467849153,-500.0,0.00013698,2]
[407170061,1772467849163,-500.0,0.00013698,2]
[407170063,1772467849173,-500.0,0.00013698,2]
[407170065,1772467849182,-500.0,0.00013698,2]
[407170067,1772467849192,-500.0,0.00013698,2]
[407170069,1772467849202,-500.0,0.00013698,2]
[407170071,1772467849211,-500.0,0.00013698,2]
[407170073,1772467849221,-568.59908985,0.00013698,2]
[407170075,1772467849230,-500.0,0.00013698,2]
[407170077,1772467849240,-500.0,0.00013698,2]
[407170079,1772467849250,-595.99,0.00013698,2]
[407170081,1772467849260,-573.14,0.00013698,2]
[407170083,1772467849269,-500.0,0.00013698,2]
[407170085,1772467849279,-500.0,0.00013698,2]
[407170087,1772467849288,-1000.0,0.00013698,2]
[407170089,1772467849298,-500.0,0.00013698,2]
[407170091,1772467849308,-1243.55,0.00013698,2]
[407170093,1772467849318,-500.0,0.00013698,2]
[407170095,1772467849328,-688.96,0.00013698,2]
[407170097,1772467849337,-665.89,0.00013698,2]
[407170099,1772467849347,-1490.15170839,0.00013698,2]
[407170101,1772467849356,-600.66,0.00013698,2]
[407170103,1772467849366,-500.0,0.00013698,2]
[407170105,1772467849376,-500.0,0.00013698,2]
[407170107,1772467849385,-500.0,0.00013698,2]
[407170109,1772467849395,-500.0,0.00013698,2]
[407170111,1772467849405,-781.39,0.00013698,2]
[407170113,1772467849414,-500.0,0.00013698,2]
[407170115,1772467849424,-500.0,0.00013698,2]
[407170117,1772467849433,-500.0,0.00013698,2]
[407170119,1772467849443,-480.02130654,0.00013698,2]
[407170121,1772467849452,-3567.99,0.00013698,2]
[407170123,1772467849462,-500.0,0.00013698,2]
[407170125,1772467849471,-500.0,0.00013698,2]
[407170127,1772467849481,-1208.88,0.00013698,2]
[407170129,1772467849493,-1627.4,0.00013698,2]
[407170131,1772467849503,-549.91,0.00013698,2]
[407170133,1772467849513,-1643.84,0.00013698,2]
[407170135,1772467849524,-290.10464002,0.00013698,2]
[407170137,1772467849533,-500.0,0.00013698,2]
[407170139,1772467849542,-930.92,0.00013698,2]
[407170141,1772467849551,-500.0,0.00013698,2]
[407170143,1772467849560,-500.0,0.00013698,2]
[407170145,1772467849570,-1557.35,0.00013698,2]
[407170147,1772467849579,-500.0,0.00013698,2]
[407170149,1772467849589,-239.88442109,0.00013698,2]
[407170151,1772467849598,-500.0,0.00013698,2]
[407170153,1772467849609,-663.3,0.00013698,2]
[407170155,1772467849618,-1155.7,0.00013698,2]
[407170157,1772467849628,-1154.62,0.00013698,2]
[407170159,1772467849637,-1411.43,0.00013698,2]
[407170161,1772467849647,-500.0,0.00013698,2]
[407170163,1772467849656,-530.58052819,0.00013698,2]
[407170181,1772467849814,-830.49,0.00013698,2]
[407170183,1772467849823,-500.0,0.00013698,2]
[407170185,1772467849834,-178.84469123,0.00013698,2]
[407170187,1772467849843,-500.0,0.00013698,2]
[407170189,1772467849853,-500.0,0.00013698,2]
[407170191,1772467849862,-500.0,0.00013698,2]
[407170193,1772467849872,-500.0,0.00013698,2]
[407170195,1772467849881,-999.82,0.00013698,2]
[407170197,1772467849891,-500.0,0.00013698,2]
[407170199,1772467849899,-500.0,0.00013698,2]
[407170201,1772467849908,-500.0,0.00013698,2]
[407170203,1772467849918,-768.61,0.00013698,2]
[407170205,1772467849928,-754.46,0.00013698,2]
[407170207,1772467849938,-525.29673428,0.00013698,2]
[407170209,1772467849947,-500.0,0.00013698,2]
[407170211,1772467849957,-512.04876621,0.00013698,2]
[407170213,1772467849967,-622.75,0.00013698,2]
[407170215,1772467849976,-1495.58,0.00013698,2]
[407170217,1772467849986,-2685.5,0.00013698,2]
[407170219,1772467849996,-613.47,0.00013698,2]
[407170221,1772467850005,-500.0,0.00013698,2]
[407170223,1772467850015,-500.0,0.00013698,2]
[407170225,1772467850025,-500.0,0.00013698,2]
[407170227,1772467850034,-2434.62,0.00013698,2]
[407170229,1772467850044,-500.0,0.00013698,2]
[407170231,1772467850054,-500.0,0.00013698,2]
[407170233,1772467850063,-1021.1,0.00013698,2]
[407170235,1772467850072,-500.0,0.00013698,2]
[407170237,1772467850082,-500.0,0.00013698,2]
[407170238,1772467850091,-500.0,0.00013698,2]
[407170240,1772467850101,-2032.47,0.00013698,2]
[407170242,1772467850110,-932.51,0.00013698,2]
[407170244,1772467850120,-2767.45,0.00013698,2]
[407170246,1772467850130,-1142.64,0.00013698,2]
[407170248,1772467850140,-500.0,0.00013698,2]
[407170250,1772467850150,-500.0,0.00013698,2]
[407170251,1772467850160,-500.0,0.00013698,2]
[407170253,1772467850169,-500.0,0.00013698,2]
[407170255,1772467850178,-500.0,0.00013698,2]
[407170257,1772467850188,-500.0,0.00013698,2]
[407170259,1772467850198,-500.0,0.00013698,2]
[407170261,1772467850207,-628.98,0.00013698,2]
[407170263,1772467850217,-1130.03,0.00013698,2]
[407170265,1772467850226,-396.54591569,0.00013698,2]
[407170267,1772467850236,-500.0,0.00013698,2]
[407170269,1772467850246,-500.0,0.00013698,2]
[407170271,1772467850255,-558.92,0.00013698,2]
[407170273,1772467850265,-500.0,0.00013698,2]
[407170275,1772467850275,-5002.54,0.00013698,2]
[407170277,1772467850285,-500.0,0.00013698,2]
[407170279,1772467850295,-2162.93,0.00013698,2]
[407170281,1772467850305,-512.57016239,0.00013698,2]
[407170283,1772467850315,-500.0,0.00013698,2]
[407170285,1772467850326,-533.18,0.00013698,2]
[407170287,1772467850335,-500.0,0.00013698,2]
[407170289,1772467850346,-500.0,0.00013698,2]
[407170291,1772467850355,-500.0,0.00013698,2]
[407170293,1772467850365,-500.0,0.00013698,2]
[407170295,1772467850375,-500.0,0.00013698,2]
[407170297,1772467850384,-515.53,0.00013698,2]
[407170299,1772467850394,-500.0,0.00013698,2]
[407170301,1772467850404,-624.36534596,0.00013698,2]
[407170303,1772467850413,-500.0,0.00013698,2]
[407170305,1772467850423,-615.5,0.00013698,2]
[407170307,1772467850433,-1833.1,0.00013698,2]
[407170309,1772467850443,-500.0,0.00013698,2]
[407170311,1772467850452,-500.0,0.00013698,2]
[407170313,1772467850462,-533.39669035,0.00013698,2]
[407170315,1772467850472,-740.09,0.00013698,2]
[407170317,1772467850482,-357.66376154,0.00013698,2]
[407170319,1772467850492,-500.0,0.00013698,2]
[407170321,1772467850502,-500.0,0.00013698,2]
[407170323,1772467850513,-500.0,0.00013698,2]
[407170325,1772467850523,-500.0,0.00013698,2]
[407170327,1772467850533,-500.0,0.00013698,2]
[407170329,1772467850543,-500.0,0.00013698,2]
[407170331,1772467850553,-500.0,0.00013698,2]
[407170333,1772467850563,-500.0,0.00013698,2]
[407170335,1772467850573,-225.49544876,0.00013698,2]
[407170337,1772467850584,-500.0,0.00013698,2]
[407170339,1772467850593,-500.0,0.00013698,2]
[407170341,1772467850603,-500.0,0.00013698,2]
[407170343,1772467850613,-500.0,0.00013698,2]
[407170345,1772467850623,-500.0,0.00013698,2]
[407170347,1772467850635,-563.60363923,0.00013698,2]
[407170349,1772467850645,-500.0,0.00013698,2]
[407170351,1772467850655,-500.0,0.00013698,2]
[407170353,1772467850665,-1376.06,0.00013698,2]
[407170354,1772467850675,-1100.67,0.00013698,2]
[407170357,1772467850686,-500.0,0.00013698,2]
[407170359,1772467850696,-500.0,0.00013698,2]
[407170361,1772467850707,-322.29063832,0.00013698,2]
[407170363,1772467850716,-500.0,0.00013698,2]
[407170365,1772467850726,-504.25770706,0.00013698,2]
[407170366,1772467850736,-500.0,0.00013698,2]
[407170369,1772467850747,-500.0,0.00013698,2]
[407170371,1772467850763,-500.0,0.00013698,2]
[407170372,1772467850773,-500.0,0.00013698,2]
[407170374,1772467850783,-500.0,0.00013698,2]
[407170376,1772467850794,-1916.08,0.00013698,2]
[407170378,1772467850804,-574.99,0.00013698,2]
[407170380,1772467850814,-532.61,0.00013698,2]
[407170382,1772467850825,-500.0,0.00013698,2]
[407170384,1772467850835,-500.0,0.00013698,2]
[407170386,1772467850845,-1279.91,0.00013698,2]
[407170388,1772467850855,-500.0,0.00013698,2]
[407170390,1772467850865,-500.0,0.00013698,2]
[407170392,1772467850875,-500.0,0.00013698,2]
[407170394,1772467850885,-500.0,0.00013698,2]
[407170396,1772467850894,-500.0,0.00013698,2]
[407170397,1772467850903,-500.0,0.00013698,2]
[407170399,1772467850912,-3042.79,0.00013698,2]
[407170401,1772467850922,-500.0,0.00013698,2]